bitfinex/quotes_BTCUSD_20251004
["timestamp","ask_amount","ask_price","bid_price","bid_amount"]
[1759545768904,0.02812482,121780.0,121770.0,0.39047632]
[1759545769105,0.04865364,121780.0,121770.0,0.39047632]
[1759545769308,0.03565364,121780.0,121770.0,0.39047632]
[1759545769703,0.04465364,121780.0,121770.0,0.39047632]
[1759545770110,0.03565364,121780.0,121770.0,0.39047632]
[1759545770324,0.03565364,121780.0,121770.0,0.07367632]
[1759545770535,0.04365364,121780.0,121770.0,0.39039632]
[1759545771868,0.04365364,121780.0,121770.0,0.07367632]
[1759545772000,0.04365364,121780.0,121770.0,0.39039632]
[1759545772207,0.04365364,121780.0,121770.0,0.36092579]
[1759545772442,0.04365364,121780.0,121770.0,0.39035416]
[1759545772999,0.04365364,121780.0,121770.0,0.36092579]
[1759545773819,0.20788421,121780.0,121770.0,0.04420579]
[1759545773954,0.18735539,121780.0,121770.0,0.39035339]
[1759545774972,0.18735539,121780.0,121770.0,0.36092579]
[1759545775493,0.18437539,121780.0,121770.0,0.36295579]
[1759545776034,0.18735539,121780.0,121770.0,0.39035744]
[1759545776670,0.18735539,121780.0,121770.0,0.36092579]
[1759545780533,0.18735539,121780.0,121770.0,0.04420579]
[1759545780767,0.18735539,121780.0,121770.0,0.36092579]
[1759545781707,0.18735539,121780.0,121770.0,0.04420579]
[1759545781923,0.18735539,121780.0,121770.0,0.36092579]
[1759545784591,0.02312482,121780.0,121770.0,0.52516985]
[1759545784769,0.18735539,121780.0,121770.0,0.36092579]
[1759545785541,0.18735539,121780.0,121770.0,0.31672]
[1759545787832,0.6195779,121780.0,121760.0,0.05894106]
[1759545788041,0.18334996,121780.0,121770.0,0.04426352]
[1759545788243,0.69869453,121780.0,121770.0,0.04426352]
[1759545788596,0.69391453,121780.0,121770.0,0.20219581]
[1759545788832,0.69391453,121780.0,121770.0,0.02951581]
[1759545789033,0.69891453,121780.0,121770.0,0.34623581]
[1759545789378,0.72355979,121780.0,121770.0,0.34623581]
[1759545789588,0.71855979,121780.0,121770.0,0.34623581]
[1759545790008,0.72655979,121780.0,121770.0,0.34623581]
[1759545792038,0.72655979,121780.0,121770.0,0.34123581]
[1759545792390,0.16424406,121770.0,121760.0,0.04426352]
[1759545792598,0.68280863,121770.0,121760.0,0.31672]
[1759545792810,0.25264612,121770.0,121760.0,0.31672]
[1759545793007,0.68486863,121770.0,121760.0,0.31672]
[1759545793209,0.68568904,121770.0,121760.0,0.31672]
[1759545793612,0.69168904,121770.0,121760.0,0.31672]
[1759545794434,0.69668904,121770.0,121760.0,0.31672]
[1759545799248,0.70490124,121770.0,121740.0,0.04426352]
[1759545799448,0.16428454,121740.0,121730.0,0.38570352]
[1759545799652,0.16428454,121740.0,121730.0,0.55542352]
[1759545799653,0.16634454,121740.0,121730.0,0.55542352]
[1759545799853,0.16956454,121740.0,121730.0,0.55542352]
[1759545801664,0.16956454,121740.0,121730.0,0.55842352]
[1759545801862,0.16956454,121740.0,121730.0,0.56042352]
[1759545802062,0.16956454,121740.0,121730.0,0.28066352]
[1759545802274,0.16956454,121740.0,121730.0,0.70746352]
[1759545803060,0.16956454,121740.0,121730.0,0.70750352]
[1759545804259,0.16956454,121740.0,121730.0,0.04926352]
[1759545804578,0.16956454,121740.0,121730.0,0.70750352]
[1759545804787,0.16956454,121740.0,121730.0,0.62214352]
[1759545804979,0.16956454,121740.0,121730.0,0.70750352]
[1759545807665,0.16956454,121740.0,121730.0,0.70754352]
[1759545810120,0.16976969,121740.0,121730.0,0.70754352]
[1759545814660,0.16976969,121740.0,121730.0,0.62218352]
[1759545814871,0.16976969,121740.0,121730.0,0.70754352]
[1759545815730,0.16976969,121740.0,121730.0,0.13462352]
[1759545815935,0.16976969,121740.0,121730.0,0.3218]
[1759545816676,0.25289175,121740.0,121730.0,0.3218]
[1759545817079,0.2775425,121740.0,121730.0,0.3218]
[1759545817521,0.2775425,121740.0,121730.0,0.3188]
[1759545817724,0.2775425,121740.0,121730.0,0.3168]
[1759545817943,0.2835425,121740.0,121730.0,0.3168]
[1759545818943,0.2855425,121740.0,121730.0,0.3168]
[1759545821519,0.2855425,121740.0,121730.0,0.36106352]
[1759545822089,0.2855425,121740.0,121730.0,0.39054781]
[1759545825187,0.2855425,121740.0,121730.0,0.36106352]
[1759545831555,0.2855425,121740.0,121730.0,0.04426352]
[1759545831704,0.2855425,121740.0,121730.0,0.36106352]
[1759545833335,0.19714044,121740.0,121730.0,0.52739155]
[1759545833700,0.19714044,121740.0,121730.0,0.3201]
[1759545833701,0.17248969,121740.0,121730.0,0.3201]
[1759545833917,0.17248969,121740.0,121730.0,0.31883]
[1759545834370,0.16648969,121740.0,121730.0,0.31883]
[1759545834499,0.16848969,121740.0,121730.0,0.31883]
[1759545834713,0.16448969,121740.0,121730.0,0.31983]
[1759545835199,0.16548969,121740.0,121730.0,0.31983]
[1759545835418,0.16548969,121740.0,121730.0,0.31883]
[1759545835629,0.00120515,121740.0,121730.0,0.54733909]
[1759545837800,0.00120515,121740.0,121730.0,0.23053909]
[1759545838015,0.00120515,121740.0,121730.0,0.88885909]
[1759545839739,0.00120515,121740.0,121730.0,0.23053909]
[1759545839941,0.00120515,121740.0,121730.0,0.88881909]
[1759545840227,0.00120515,121740.0,121730.0,0.23053909]
[1759545840385,0.00120515,121740.0,121730.0,0.88881909]
[1759545841189,0.00120515,121740.0,121730.0,0.23053909]
[1759545841395,0.00120515,121740.0,121730.0,0.88754909]
[1759545842175,0.00120515,121740.0,121730.0,0.80218909]
[1759545842376,0.00120515,121740.0,121730.0,0.88754909]
[1759545842581,0.00638515,121740.0,121730.0,0.88551909]
[1759545842752,0.00120515,121740.0,121730.0,0.80210909]
[1759545842987,0.00120515,121740.0,121730.0,0.22918909]
[1759545843321,0.00120515,121740.0,121730.0,0.88873909]
[1759545843521,0.00120515,121740.0,121730.0,4.93575645]
[1759545843651,0.00120515,121740.0,121730.0,4.87681539]
[1759545843854,0.00120515,121740.0,121730.0,4.97518871]
[1759545844548,0.00120515,121740.0,121730.0,4.63864004]
[1759545845213,0.00120515,121740.0,121730.0,4.21180004]
[1759545845413,0.00120515,121740.0,121730.0,4.61541864]
[1759545845840,0.00120515,121740.0,121730.0,4.84689864]
[1759545846045,0.00120515,121740.0,121730.0,4.18857864]
[1759545846240,0.00120515,121740.0,121730.0,4.84689864]
[1759545847924,0.00120515,121740.0,121730.0,4.76153864]
[1759545848126,0.00120515,121740.0,121730.0,4.84689864]
[1759545854586,0.00120515,121740.0,121730.0,4.86166525]
[1759545859010,0.00120515,121740.0,121730.0,4.43474525]
[1759545859136,0.00120515,121740.0,121730.0,4.86154525]
[1759545859505,0.00120515,121740.0,121730.0,4.83139335]
[1759545860272,0.00120515,121740.0,121730.0,4.17319335]
[1759545860454,0.00120515,121740.0,121730.0,4.83139335]
[1759545861100,0.00120515,121740.0,121730.0,4.40459335]
[1759545861278,0.00120515,121740.0,121730.0,4.83139335]
[1759545862414,0.00638515,121740.0,121730.0,0.41372873]
[1759545862580,0.17066969,121740.0,121730.0,0.6582]
[1759545862784,0.17066969,121740.0,121730.0,0.70241231]
[1759545863210,0.17066969,121740.0,121730.0,0.70269231]
[1759545864946,0.00332515,121740.0,121730.0,4.39330003]
[1759545865126,0.00120515,121740.0,121730.0,3.79376473]
[1759545865314,0.00120515,121740.0,121730.0,4.45228473]
[1759545866623,0.00638515,121740.0,121730.0,0.22324273]
[1759545866768,0.00638515,121740.0,121730.0,0.88176273]
[1759545877463,0.00120515,121740.0,121730.0,0.88176273]
[1759545878302,0.00334515,121740.0,121730.0,0.88176273]
[1759545878506,0.00640515,121740.0,121730.0,0.88176273]
[1759545882386,0.00120515,121740.0,121730.0,0.88176273]
[1759545882801,0.00640515,121740.0,121730.0,0.88176273]
[1759545884032,0.00120515,121740.0,121730.0,0.88176273]
[1759545884683,0.00640515,121740.0,121730.0,0.88176273]
[1759545887177,0.17068969,121740.0,121730.0,0.88168273]
[1759545888405,0.17068969,121740.0,121730.0,0.79632273]
[1759545888611,0.17068969,121740.0,121730.0,0.88168273]
[1759545893452,0.17068969,121740.0,121730.0,0.7173847]
[1759545895144,0.17068969,121740.0,121730.0,0.0589447]
[1759545895369,0.17068969,121740.0,121730.0,0.7173447]
[1759545896877,0.17068969,121740.0,121730.0,0.88164273]
[1759545897979,0.17068969,121740.0,121730.0,0.7173447]
[1759545900701,0.17068969,121740.0,121730.0,0.88164273]
[1759545901866,0.17068969,121740.0,121730.0,0.0589447]
[1759545902067,0.17068969,121740.0,121730.0,0.7174247]
[1759545902711,0.17068969,121740.0,121730.0,0.4857847]
[1759545902921,0.17068969,121740.0,121730.0,0.70274662]
[1759545902922,0.25381175,121740.0,121730.0,0.70274662]
[1759545903366,0.25381175,121740.0,121730.0,0.04430662]
[1759545903585,0.25381175,121740.0,121730.0,0.07383431]
[1759545903804,0.25381175,121740.0,121730.0,0.04430662]
[1759545904224,0.25381175,121740.0,121730.0,0.25667442]
[1759545904841,0.25381175,121740.0,121730.0,0.2123678]
[1759545905254,0.25381175,121740.0,121730.0,0.23450784]
[1759545908073,0.27764156,121740.0,121730.0,0.23450784]
[1759545908761,0.27764156,121740.0,121730.0,0.28330784]
[1759545908994,0.27764156,121740.0,121730.0,0.36866784]
[1759545909655,0.30229233,121740.0,121730.0,0.36866784]
[1759545910359,0.71008808,121740.0,121730.0,0.02214004]
[1759545910588,0.27764156,121740.0,121730.0,0.33914004]
[1759545912686,0.71008808,121740.0,121730.0,0.02214004]
[1759545912950,0.71008808,121740.0,121730.0,0.33910004]
[1759545913118,0.73474006,121740.0,121730.0,0.33910004]
[1759545914129,1.07474006,121740.0,121730.0,0.02214004]
[1759545914328,1.07474006,121740.0,121730.0,0.31696]
[1759545916335,1.07474006,121740.0,121720.0,0.02269027]
[1759545916336,0.16429803,121730.0,121720.0,0.02269027]
[1759545916535,0.24742009,121730.0,121720.0,0.33965027]
[1759545916750,0.25277009,121730.0,121720.0,0.33965027]
[1759545917900,0.25277009,121730.0,121720.0,0.34465027]
[1759545918302,0.25277009,121730.0,121720.0,0.35165027]
[1759545919362,0.25277009,121730.0,121720.0,0.34465027]
[1759545919566,0.25477009,121730.0,121720.0,0.34465027]
[1759545919991,0.25477009,121730.0,121720.0,0.02769027]
[1759545920181,0.25477009,121730.0,121720.0,0.33961027]
[1759545920601,0.25877009,121730.0,121720.0,0.33961027]
[1759545925042,0.25877009,121730.0,121720.0,0.02269027]
[1759545925399,0.25877009,121730.0,121720.0,0.33597027]
[1759545927293,0.25877009,121730.0,121720.0,0.02269027]
[1759545927513,0.25877009,121730.0,121720.0,0.33961027]
[1759545928133,0.25877009,121730.0,121720.0,0.02269027]
[1759545928335,0.25877009,121730.0,121720.0,0.33961027]
[1759545929556,0.25877009,121730.0,121720.0,0.36913807]
[1759545929756,0.25877009,121730.0,121720.0,0.34699803]
[1759545930576,0.25553009,121730.0,121720.0,0.34699803]
[1759545930782,0.25854009,121730.0,121720.0,0.34699803]
[1759545932423,0.25854009,121730.0,121720.0,0.39130465]
[1759545934329,0.25854009,121730.0,121720.0,0.36177685]
[1759545934330,0.17029803,121730.0,121720.0,0.36177685]
[1759545934550,0.17029803,121730.0,121720.0,0.31747023]
[1759545934966,0.006,121730.0,121720.0,0.48178176]
[1759545935214,0.006,121730.0,121720.0,0.54072646]
[1759545935418,0.006,121730.0,121720.0,0.37641493]
[1759545935634,0.006,121730.0,121720.0,0.54072646]
[1759545935840,0.006,121730.0,121720.0,4.11124846]
[1759545936480,0.002,121730.0,121720.0,4.11124846]
[1759545936898,0.003,121730.0,121720.0,4.05230376]
[1759545937103,0.001,121730.0,121720.0,4.05230376]
[1759545937318,0.001,121730.0,121720.0,4.12703249]
[1759545937528,0.001,121730.0,121720.0,4.05230376]
[1759545937745,0.001,121730.0,121720.0,4.46755249]
[1759545937960,0.001,121730.0,121720.0,4.39782376]
[1759545938188,0.00020515,121740.0,121730.0,0.16429803]
[1759545938406,0.00020515,121740.0,121730.0,0.22325583]
[1759545938850,0.00020515,121740.0,121730.0,0.88165583]
[1759545939136,0.00020515,121740.0,121730.0,0.22325583]
[1759545939371,0.00020515,121740.0,121730.0,0.82469803]
[1759545940182,0.00020515,121740.0,121730.0,0.16629803]
[1759545940403,0.00224515,121740.0,121730.0,0.6604]
[1759545940599,0.00525515,121740.0,121730.0,0.004]
[1759545940813,0.00525515,121740.0,121730.0,0.6624]
[1759545941229,0.00525515,121740.0,121730.0,0.70658975]
[1759545942145,0.00224515,121740.0,121730.0,0.62122975]
[1759545942344,0.00020515,121740.0,121730.0,0.87088778]
[1759545943372,0.00020515,121740.0,121730.0,0.70658975]
[1759545943977,0.00020515,121740.0,121730.0,0.04818975]
[1759545944113,0.00525515,121740.0,121730.0,0.70658975]
[1759545944325,0.16953969,121740.0,121730.0,0.39451938]
[1759545944534,0.16953969,121740.0,121730.0,0.36506975]
[1759545945166,0.16953969,121740.0,121730.0,0.04818975]
[1759545945597,0.16953969,121740.0,121730.0,0.36506975]
[1759545946371,0.16953969,121740.0,121730.0,0.39451758]
[1759545949265,0.16953969,121740.0,121730.0,0.36506975]
[1759545950496,0.00525515,121740.0,121730.0,0.36506975]
[1759545950692,0.00525515,121740.0,121730.0,0.04818975]
[1759545950898,0.00525515,121740.0,121730.0,0.36502975]
[1759545951778,0.16953969,121740.0,121730.0,0.04818975]
[1759545952187,0.16953969,121740.0,121730.0,0.36502975]
[1759545955342,0.00525515,121740.0,121730.0,0.36502975]
[1759545955757,0.16953969,121740.0,121730.0,0.36502975]
[1759545962516,0.16953969,121740.0,121730.0,0.004]
[1759545962731,0.16953969,121740.0,121730.0,0.32084]
[1759545963597,0.16953969,121740.0,121730.0,0.004]
[1759545963804,0.16953969,121740.0,121730.0,0.32084]
[1759545964232,0.16953969,121740.0,121730.0,0.004]
[1759545964441,0.16953969,121740.0,121730.0,0.32084]
[1759545964703,0.16953969,121740.0,121730.0,0.36513]
[1759545966788,0.16953969,121740.0,121730.0,0.11488585]
[1759545968010,0.16953969,121740.0,121730.0,0.34636585]
[1759545969654,0.25266175,121740.0,121730.0,0.34636585]
[1759545976880,0.25266175,121740.0,121730.0,0.08536]
[1759545978024,0.25266175,121740.0,121730.0,0.31684]
[1759545979099,0.08837721,121740.0,121730.0,0.31684]
[1759545979357,0.08332721,121740.0,121730.0,0.31684]
[1759545979605,0.24761175,121740.0,121730.0,0.31684]
[1759545979991,0.25269175,121740.0,121730.0,0.31684]
[1759545983190,0.25269175,121740.0,121730.0,0.08536]
[1759545984533,0.25269175,121740.0,121730.0,0.29024]
[1759545985932,0.25269175,121740.0,121730.0,0.23148]
[1759545986137,0.25269175,121740.0,121730.0,0.31684]
[1759545996960,0.25269175,121740.0,121730.0,0.36114278]
[1759545998190,0.25269175,121740.0,121730.0,0.04430278]
[1759545998393,0.25269175,121740.0,121730.0,0.36114278]
[1759545998592,0.08332721,121740.0,121730.0,0.36114278]
[1759545998796,0.26814731,121740.0,121730.0,0.36114278]
[1759545999106,0.25294175,121740.0,121730.0,0.36114278]
[1759546003327,0.00337515,121740.0,121730.0,0.36114278]
[1759546003518,0.00020515,121740.0,121730.0,0.31684]
[1759546004387,0.00020515,121740.0,121730.0,0.54018974]
[1759546011022,0.00020515,121740.0,121730.0,0.56348898]
[1759546011228,0.00020515,121740.0,121730.0,0.54018974]
[1759546015110,0.00020515,121740.0,121730.0,0.22334974]
[1759546015318,0.00020515,121740.0,121730.0,0.88166974]
[1759546015538,0.00020515,121740.0,121730.0,0.22334974]
[1759546015742,0.00553515,121740.0,121730.0,0.45482974]
[1759546015991,0.00553515,121740.0,121730.0,0.88166974]
[1759546016219,0.00236515,121740.0,121730.0,0.88166974]
[1759546016440,0.00020515,121740.0,121730.0,0.88166974]
[1759546017504,0.00020515,121740.0,121730.0,0.22334974]
[1759546017661,0.00020515,121740.0,121730.0,0.88166974]
[1759546019835,0.00020515,121740.0,121730.0,0.22334974]
[1759546020022,0.00020515,121740.0,121730.0,0.79626974]
[1759546020319,0.00539515,121740.0,121730.0,0.29049171]
[1759546020570,0.00539515,121740.0,121730.0,0.71733171]
[1759546020805,0.00539515,121740.0,121730.0,0.88162974]
[1759546021204,0.00020515,121740.0,121730.0,0.79630974]
[1759546021428,0.00020515,121740.0,121730.0,0.22334974]
[1759546021639,0.00020515,121740.0,121730.0,0.88166974]
[1759546022268,0.00539515,121740.0,121730.0,0.88166974]
[1759546022721,0.00539515,121740.0,121730.0,0.22334974]
[1759546022915,0.00539515,121740.0,121730.0,0.88166974]
[1759546024983,0.00539515,121740.0,121730.0,0.22334974]
[1759546025187,0.00539515,121740.0,121730.0,0.88166974]
[1759546027936,0.00539515,121740.0,121730.0,0.88162974]
[1759546038158,0.16967969,121740.0,121730.0,0.71733171]
[1759546040594,0.16967969,121740.0,121730.0,0.05905171]
[1759546040813,0.16967969,121740.0,121730.0,0.42684]
[1759546040995,0.16967969,121740.0,121730.0,0.70256425]
[1759546043831,0.16429803,121730.0,121720.0,0.38575351]
[1759546044030,0.16948803,121730.0,121720.0,0.47111351]
[1759546044993,0.16948803,121730.0,121720.0,0.70555351]
[1759546045219,0.16948803,121730.0,121720.0,0.70655351]
[1759546048019,0.00519,121730.0,121720.0,0.70655351]
[1759546049038,0.25067175,121740.0,121720.0,0.87086504]
[1759546049262,0.25067175,121740.0,121730.0,0.02950919]
[1759546049479,0.25281175,121740.0,121730.0,0.02950919]
[1759546051225,0.68524076,121740.0,121730.0,0.02950919]
[1759546051428,0.25281175,121740.0,121730.0,0.34634919]
[1759546051571,0.68524076,121740.0,121730.0,0.31684]
[1759546051775,0.70989219,121740.0,121730.0,0.31684]
[1759546051978,0.71189219,121740.0,121730.0,0.31684]
[1759546053900,0.71189219,121740.0,121730.0,0.34634919]
[1759546055966,0.27946318,121740.0,121730.0,0.34634919]
[1759546056181,1.05189219,121740.0,121730.0,0.31684]
[1759546058514,0.61946318,121740.0,121730.0,0.31684]
[1759546058730,1.05189219,121740.0,121730.0,0.31684]
[1759546060533,0.16429803,121730.0,121720.0,0.02950919]
[1759546060881,0.16739803,121730.0,121720.0,0.34634919]
[1759546061074,0.16953803,121730.0,121720.0,0.34634919]
[1759546061387,0.19418993,121730.0,121720.0,0.34634919]
[1759546061917,0.19418993,121730.0,121720.0,0.02950919]
[1759546062123,0.19418993,121730.0,121720.0,0.34934919]
[1759546062342,0.19418993,121730.0,121720.0,0.03250919]
[1759546062537,0.19418993,121730.0,121720.0,0.34934919]
[1759546063198,0.19418993,121730.0,121720.0,0.35234919]
[1759546064397,0.19418993,121730.0,121720.0,0.34934919]
[1759546064597,0.19418993,121730.0,121720.0,0.03250919]
[1759546064819,0.20018993,121730.0,121720.0,0.34634919]
[1759546065165,0.20618993,121730.0,121720.0,0.34634919]
[1759546068446,0.20618993,121730.0,121720.0,0.39058329]
[1759546069724,0.20618993,121730.0,121720.0,0.07374329]
[1759546069939,0.20618993,121730.0,121720.0,0.39058329]
[1759546070378,0.20618993,121730.0,121720.0,0.34634919]
[1759546072067,0.20618993,121730.0,121720.0,0.02950919]
[1759546072497,0.20618993,121730.0,121720.0,0.34634919]
[1759546072797,0.20618993,121730.0,121720.0,0.02950919]
[1759546073025,0.20618993,121730.0,121720.0,0.34634919]
[1759546074688,0.20618993,121730.0,121720.0,0.02950919]
[1759546074818,0.17629803,121730.0,121720.0,0.36964843]
[1759546075016,0.17629803,121730.0,121720.0,0.2757141]
[1759546075220,0.17629803,121730.0,121720.0,0.0442341]
[1759546075546,0.17629803,121730.0,121720.0,0.2757941]
[1759546075744,0.17629803,121730.0,121720.0,0.0442341]
[1759546076669,0.17629803,121730.0,121720.0,0.2757541]
[1759546076896,0.17629803,121730.0,121720.0,0.7026741]
[1759546077076,0.16429803,121730.0,121720.0,0.7026741]
[1759546077278,0.17029803,121730.0,121720.0,0.7026741]
[1759546077682,0.16729803,121730.0,121720.0,0.7026741]
[1759546077891,0.16429803,121730.0,121720.0,0.7026741]
[1759546078031,0.16729803,121730.0,121720.0,0.7026741]
[1759546079033,0.17029803,121730.0,121720.0,0.7026741]
[1759546079271,0.006,121730.0,121720.0,0.86698563]
[1759546079474,0.006,121730.0,121720.0,4.47558518]
[1759546079708,0.006,121730.0,121720.0,4.47693517]
[1759546079913,0.006,121730.0,121720.0,4.31262364]
[1759546080126,0.006,121730.0,121720.0,4.47693517]
[1759546080550,0.003,121730.0,121720.0,4.47693517]
[1759546080746,0.00020515,121740.0,121720.0,4.47693517]
[1759546080951,0.00020515,121740.0,121730.0,3.57074849]
[1759546081160,0.00020515,121740.0,121720.0,0.90641317]
[1759546081396,0.00020515,121740.0,121730.0,3.57074849]
[1759546081600,0.00020515,121740.0,121730.0,0.05901241]
[1759546081803,0.00020515,121740.0,121730.0,0.05923722]
[1759546082686,0.00320515,121740.0,121730.0,0.05923722]
[1759546083327,0.00020515,121740.0,121730.0,0.16452284]
[1759546083529,0.00020515,121740.0,121730.0,0.22331044]
[1759546083733,0.00320515,121740.0,121730.0,0.22331044]
[1759546084177,0.00020515,121740.0,121730.0,0.22331044]
[1759546084383,0.00020515,121740.0,121730.0,0.24795724]
[1759546086364,0.00020515,121740.0,121730.0,3.81847924]
[1759546086535,0.00020515,121740.0,121730.0,4.18177848]
[1759546086737,0.00020515,121740.0,121730.0,4.1964948]
[1759546087604,0.00020515,121740.0,121730.0,4.12276607]
[1759546087802,0.00020515,121740.0,121730.0,4.12576607]
[1759546088644,0.00020515,121740.0,121730.0,4.12876607]
[1759546090349,0.00020515,121740.0,121730.0,4.18760782]
[1759546094440,0.00020515,121740.0,121730.0,4.84596782]
[1759546094665,0.00020515,121740.0,121730.0,4.41912782]
[1759546094865,0.00020515,121740.0,121730.0,4.84596782]
[1759546097279,0.00020515,121740.0,121730.0,4.41912782]
[1759546097586,0.00020515,121740.0,121730.0,4.84596782]
[1759546098010,0.00020515,121740.0,121730.0,4.41912782]
[1759546098153,0.00020515,121740.0,121730.0,4.84592782]
[1759546098797,0.00020515,121740.0,121730.0,4.18760782]
[1759546098994,0.00020515,121740.0,121730.0,4.84592782]
[1759546101614,0.00020515,121740.0,121730.0,4.95920178]
[1759546101828,9.28e-06,121740.0,121730.0,5.07408876]
[1759546102044,9.28e-06,121740.0,121730.0,5.10288242]
[1759546102677,9.28e-06,121740.0,121730.0,5.09988242]
[1759546102896,9.28e-06,121740.0,121730.0,5.10788242]
[1759546103100,9.28e-06,121740.0,121730.0,5.43288242]
[1759546104613,9.28e-06,121740.0,121730.0,5.44188242]
[1759546105430,9.28e-06,121740.0,121730.0,5.43811812]
[1759546105633,9.28e-06,121740.0,121730.0,5.42577003]
[1759546105849,9.28e-06,121740.0,121730.0,5.34841003]
[1759546106067,9.28e-06,121740.0,121730.0,4.68904003]
[1759546106284,9.28e-06,121740.0,121730.0,5.86514107]
[1759546106498,9.28e-06,121740.0,121730.0,5.88844031]
[1759546106708,9.28e-06,121740.0,121730.0,4.88868031]
[1759546106973,9.28e-06,121740.0,121730.0,5.88832031]
[1759546107178,9.28e-06,121740.0,121730.0,5.80300031]
[1759546107384,9.28e-06,121740.0,121730.0,5.88832031]
[1759546111820,9.28e-06,121740.0,121730.0,5.88828031]
[1759546112036,0.06649765,121780.0,121770.0,0.16424406]
[1759546112238,0.06657881,121780.0,121770.0,0.52517424]
[1759546112637,0.06794922,121780.0,121770.0,0.54981187]
[1759546113236,0.00145157,121780.0,121770.0,0.50568169]
[1759546113463,0.00445157,121780.0,121770.0,4.41620369]
[1759546113712,0.00445157,121780.0,121770.0,4.47504393]
[1759546114009,0.00645157,121780.0,121770.0,4.47504393]
[1759546114900,0.00445157,121780.0,121770.0,4.47504393]
[1759546115056,0.00445157,121780.0,121770.0,4.47604393]
[1759546115261,0.00145157,121780.0,121770.0,4.47604393]
[1759546116707,0.00145157,121780.0,121770.0,4.50868612]
[1759546116915,0.00145157,121780.0,121770.0,4.50768612]
[1759546117101,0.00145157,121780.0,121770.0,4.64425932]
[1759546117301,0.00145157,121780.0,121770.0,4.16962339]
[1759546117547,0.00145157,121780.0,121770.0,4.3927062]
[1759546117747,0.00145157,121780.0,121770.0,4.71076696]
[1759546117953,0.00145157,121780.0,121770.0,4.70976696]
[1759546118291,0.00145157,121780.0,121770.0,4.65092821]
[1759546118497,0.00145157,121780.0,121770.0,4.65492821]
[1759546118669,0.00145157,121780.0,121770.0,4.88844821]
[1759546122416,0.00145157,121780.0,121770.0,4.23024821]
[1759546122628,0.00145157,121780.0,121770.0,4.88840821]
[1759546125985,0.00145157,121780.0,121770.0,4.94724696]
[1759546126566,0.00145157,121780.0,121770.0,4.94716696]
[1759546127357,0.00145157,121780.0,121770.0,4.96187852]
[1759546127757,0.00145157,121780.0,121770.0,4.30379852]
[1759546128149,0.00145157,121780.0,121770.0,4.96187852]
[1759546128619,0.00145157,121780.0,121770.0,4.30379852]
[1759546128873,0.00145157,121780.0,121770.0,4.96183852]
[1759546129653,0.00145157,121780.0,121770.0,4.87651852]
[1759546129861,0.00145157,121780.0,121770.0,4.96183852]
[1759546132616,0.00145157,121780.0,121770.0,6.88783852]
[1759546133456,0.00145157,121780.0,121770.0,6.80251852]
[1759546133667,0.00145157,121780.0,121770.0,6.88783852]
[1759546135197,0.00145157,121780.0,121770.0,6.80247852]
[1759546135405,0.00145157,121780.0,121770.0,6.88779852]
[1759546136245,0.00145157,121780.0,121770.0,6.22979852]
[1759546136464,0.00145157,121780.0,121770.0,6.88779852]
[1759546136857,0.00145157,121780.0,121770.0,6.22979852]
[1759546137088,0.00145157,121780.0,121770.0,6.88779852]
[1759546138081,0.00145157,121780.0,121770.0,6.46115852]
[1759546138252,0.00145157,121780.0,121770.0,6.81424821]
[1759546138786,0.00145157,121780.0,121770.0,6.69774233]
[1759546139012,0.00145157,121780.0,121770.0,6.72104157]
[1759546139201,0.00145157,121780.0,121770.0,6.74567622]
[1759546140947,0.00145157,121780.0,121770.0,7.0854165]
[1759546141724,0.00145157,121780.0,121770.0,6.4274165]
[1759546141927,0.00145157,121780.0,121770.0,6.1024165]
[1759546142129,0.00342157,121780.0,121770.0,7.07867726]
[1759546142284,0.00643157,121780.0,121770.0,6.68822587]
[1759546142482,0.00145157,121780.0,121770.0,6.60290587]
[1759546142710,0.00145157,121780.0,121770.0,6.68822587]
[1759546142910,0.00145157,121780.0,121770.0,6.74720567]
[1759546143547,0.00145157,121780.0,121770.0,6.74724567]
[1759546143903,0.00145157,121780.0,121770.0,6.08892567]
[1759546144183,0.00145157,121780.0,121770.0,6.74724567]
[1759546145528,0.00145157,121780.0,121770.0,6.72271566]
[1759546146593,0.00342157,121780.0,121770.0,6.06439566]
[1759546146751,0.00643157,121780.0,121770.0,6.72267566]
[1759546147101,0.00145157,121780.0,121770.0,6.72267566]
[1759546147679,0.00145157,121780.0,121770.0,6.74720567]
[1759546148758,0.00145157,121780.0,121770.0,6.76192727]
[1759546151239,0.17066214,121780.0,121770.0,2.3470214]
[1759546151459,0.17066214,121780.0,121770.0,2.64937078]
[1759546151864,0.17066214,121780.0,121770.0,1.932]
[1759546152094,0.17066214,121780.0,121770.0,2.59036]
[1759546152865,0.17066214,121780.0,121770.0,2.63458998]
[1759546155535,0.17066214,121780.0,121770.0,2.20602998]
[1759546155720,0.17066214,121780.0,121770.0,2.29134998]
[1759546155965,0.17366214,121780.0,121770.0,2.32081174]
[1759546156613,0.17366214,121780.0,121770.0,2.31681174]
[1759546157036,0.17566214,121780.0,121770.0,2.31681174]
[1759546158506,0.17566214,121780.0,121770.0,2.27258176]
[1759546158715,0.2587842,121780.0,121770.0,2.27258176]
[1759546171144,0.2587842,121780.0,121770.0,2.27254176]
[1759546173418,0.2587842,121780.0,121770.0,2.31677174]
[1759546173787,0.2587842,121780.0,121770.0,2.31673174]
[1759546174011,0.2587842,121780.0,121770.0,2.29459328]
[1759546174443,0.2587842,121780.0,121770.0,2.27250176]
[1759546175611,0.2587842,121780.0,121770.0,1.95546176]
[1759546175951,0.2587842,121780.0,121770.0,2.29459957]
[1759546177096,0.2587842,121780.0,121770.0,2.26513781]
[1759546177322,0.2587842,121780.0,121770.0,2.29459957]
[1759546178700,0.2587842,121780.0,121770.0,2.29461258]
[1759546178903,0.2587842,121780.0,121770.0,2.27250176]
[1759546180743,0.2587842,121780.0,121770.0,2.31673174]
[1759546180941,0.2587842,121780.0,121770.0,2.27250176]
[1759546181313,0.2587842,121780.0,121770.0,2.31673174]
[1759546182086,0.17068214,121780.0,121770.0,2.24304]
[1759546182290,0.17068214,121780.0,121770.0,2.31182732]
[1759546183095,0.17276214,121780.0,121770.0,2.31183079]
[1759546183262,0.17580214,121780.0,121770.0,2.31183079]
[1759546183670,0.17068214,121780.0,121770.0,2.24304]
[1759546185535,0.17068214,121780.0,121770.0,2.30205078]
[1759546185985,0.17580214,121780.0,121770.0,2.30205078]
[1759546186747,0.17068214,121780.0,121770.0,2.30205078]
[1759546187009,0.17276214,121780.0,121770.0,2.30205078]
[1759546187230,0.17580214,121780.0,121770.0,2.30205078]
[1759546188098,0.17580214,121780.0,121770.0,1.98501078]
[1759546188305,0.17580214,121780.0,121770.0,2.30201078]
[1759546188486,0.17068214,121780.0,121770.0,2.30201078]
[1759546188719,0.17276214,121780.0,121770.0,2.30201078]
[1759546188926,0.17580214,121780.0,121770.0,2.30201078]
[1759546189789,0.17580214,121780.0,121770.0,2.21669078]
[1759546190002,0.17580214,121780.0,121770.0,2.243]
[1759546190204,0.17580214,121780.0,121770.0,2.2872209]
[1759546190380,0.17580214,121780.0,121770.0,2.2019009]
[1759546190586,0.17580214,121780.0,121770.0,1.9702609]
[1759546190784,0.17580214,121780.0,121770.0,2.2872209]